[Event "Betsys MČR v online bleskovém šachu 2021"]
[Site "Chess.com"]
[Date "2021.04.17"]
[Round "11"]
[White "OlifantCZ"]
[Black "Johanna94"]
[Result "0-1"]
[WhiteElo "2266"]
[BlackElo "2082"]
[TimeControl "180+1"]
[EndTime "10:50:50 PDT"]
[Termination "Uživatel Johanna94 zvítězil na čas"]

1. c4 {[%clk 0:03:00.9]} 1... e5 {[%clk 0:02:59.1]} 2. g3 {[%clk 0:03:01.1]}
2... Nf6 {[%clk 0:02:57.8]} 3. Bg2 {[%clk 0:03:01.5]} 3... Nc6 {[%clk
0:02:57.4]} 4. Nc3 {[%clk 0:02:59.9]} 4... d6 {[%clk 0:02:36.7]} 5. e3 {[%clk
0:02:57.4]} 5... Be6 {[%clk 0:02:32.7]} 6. b3 {[%clk 0:02:57.2]} 6... Qd7 {[%clk
0:02:20.3]} 7. Bb2 {[%clk 0:02:56.4]} 7... Be7 {[%clk 0:01:52.2]} 8. Nge2 {[%clk
0:02:41.8]} 8... O-O {[%clk 0:01:51.9]} 9. O-O {[%clk 0:02:41.8]} 9... Rad8
{[%clk 0:01:50.5]} 10. d4 {[%clk 0:02:40.3]} 10... exd4 {[%clk 0:01:50]} 11.
Nxd4 {[%clk 0:02:39.9]} 11... Nxd4 {[%clk 0:01:48.4]} 12. Qxd4 {[%clk 0:02:38]}
12... c6 {[%clk 0:01:44.9]} 13. Rad1 {[%clk 0:02:33]} 13... Bh3 {[%clk
0:01:42.5]} 14. Ba3 {[%clk 0:02:19.1]} 14... Rfe8 {[%clk 0:01:32.4]} 15. Ne4
{[%clk 0:01:37.2]} 15... Nxe4 {[%clk 0:01:30.4]} 16. Qxe4 {[%clk 0:01:35.1]}
16... Bf8 {[%clk 0:01:24.1]} 17. Qc2 {[%clk 0:01:23.6]} 17... Bf5 {[%clk
0:01:19.9]} 18. Qd2 {[%clk 0:01:16.7]} 18... Qe6 {[%clk 0:01:18]} 19. Rfe1
{[%clk 0:01:10.1]} 19... Qg6 {[%clk 0:00:55.9]} 20. Qc3 {[%clk 0:01:05.9]} 20...
Be7 {[%clk 0:00:52.5]} 21. Qa5 {[%clk 0:00:55.5]} 21... a6 {[%clk 0:00:51.2]}
22. Qb6 {[%clk 0:00:53.9]} 22... Bc8 {[%clk 0:00:51.2]} 23. Rd2 {[%clk
0:00:47.8]} 23... Bg5 {[%clk 0:00:48.7]} 24. Red1 {[%clk 0:00:41.8]} 24... Bg4
{[%clk 0:00:43.6]} 25. Re1 {[%clk 0:00:41.5]} 25... Bc8 {[%clk 0:00:43.2]} 26.
h4 {[%clk 0:00:35.9]} 26... Be7 {[%clk 0:00:43.2]} 27. Qa5 {[%clk 0:00:21]}
27... Qg4 {[%clk 0:00:38.2]} 28. Qc3 {[%clk 0:00:19.5]} 28... Qg6 {[%clk
0:00:37.9]} 29. Qd3 {[%clk 0:00:18.8]} 29... Qg4 {[%clk 0:00:35.6]} 30. Qe2
{[%clk 0:00:18.3]} 30... Qg6 {[%clk 0:00:35.1]} 31. Red1 {[%clk 0:00:18.2]}
31... Bg4 {[%clk 0:00:32.6]} 32. f3 {[%clk 0:00:15.8]} 32... Bc8 {[%clk
0:00:32.5]} 33. Qf2 {[%clk 0:00:15.7]} 33... Bf8 {[%clk 0:00:28.2]} 34. e4
{[%clk 0:00:15.9]} 34... h5 {[%clk 0:00:20]} 35. Bb2 {[%clk 0:00:14.8]} 35...
Be7 {[%clk 0:00:19.5]} 36. Bd4 {[%clk 0:00:14.9]} 36... c5 {[%clk 0:00:18.6]}
37. Bb2 {[%clk 0:00:14.7]} 37... b6 {[%clk 0:00:17.2]} 38. Kh2 {[%clk 0:00:12]}
38... Bb7 {[%clk 0:00:17.7]} 39. Bc3 {[%clk 0:00:10.5]} 39... Bf8 {[%clk
0:00:18.2]} 40. Qe3 {[%clk 0:00:10.3]} 40... f5 {[%clk 0:00:17]} 41. e5 {[%clk
0:00:08.2]} 41... Kh8 {[%clk 0:00:13.7]} 42. f4 {[%clk 0:00:08.3]} 42... Bxg2
{[%clk 0:00:13.1]} 43. Kxg2 {[%clk 0:00:08.6]} 43... Rc8 {[%clk 0:00:11.4]} 44.
Rd5 {[%clk 0:00:05.9]} 44... dxe5 {[%clk 0:00:11.7]} 45. Rxe5 {[%clk 0:00:05.9]}
45... Rxe5 {[%clk 0:00:12]} 46. Bxe5 {[%clk 0:00:05.8]} 46... Qc6+ {[%clk
0:00:12]} 47. Rd5 {[%clk 0:00:04.4]} 47... b5 {[%clk 0:00:11]} 48. Kh3 {[%clk
0:00:04]} 48... bxc4 {[%clk 0:00:11.4]} 49. bxc4 {[%clk 0:00:04.4]} 49... Re8
{[%clk 0:00:12]} 50. Qd3 {[%clk 0:00:04.4]} 50... Qg6 {[%clk 0:00:10.7]} 51. Rd7
{[%clk 0:00:02.8]} 51... Qg4+ {[%clk 0:00:10.4]} 52. Kh2 {[%clk 0:00:03]} 52...
Kh7 {[%clk 0:00:11]} 53. Qd5 {[%clk 0:00:02.4]} 53... Qe2+ {[%clk 0:00:09.2]}
54. Kh3 {[%clk 0:00:01.5]} 54... Qg4+ {[%clk 0:00:09.6]} 0-1

[Event "Betsys MČR v online bleskovém šachu 2021"]
[Site "Chess.com"]
[Date "2021.04.17"]
[Round "11"]
[White "Z_u_z_i"]
[Black "SajdlJosef"]
[Result "0-1"]
[WhiteElo "1535"]
[BlackElo "1816"]
[TimeControl "180+1"]
[EndTime "10:50:50 PDT"]
[Termination "Uživatel SajdlJosef zvítězil na čas"]

1. e4 {[%clk 0:03:00.9]} 1... c6 {[%clk 0:02:50.6]} 2. d4 {[%clk 0:03:00]} 2...
d5 {[%clk 0:02:49.7]} 3. Nd2 {[%clk 0:02:58.2]} 3... dxe4 {[%clk 0:02:48.1]} 4.
Nxe4 {[%clk 0:02:57.4]} 4... Nf6 {[%clk 0:02:48.6]} 5. Ng3 {[%clk 0:02:56.7]}
5... h5 {[%clk 0:02:47.6]} 6. h4 {[%clk 0:02:55.4]} 6... Bg4 {[%clk 0:02:45.1]}
7. Nf3 {[%clk 0:02:54.8]} 7... e6 {[%clk 0:02:43.7]} 8. Be2 {[%clk 0:02:54.5]}
8... Bd6 {[%clk 0:02:42.5]} 9. c3 {[%clk 0:02:48.2]} 9... Qc7 {[%clk 0:02:41.3]}
10. Nf1 {[%clk 0:02:43]} 10... Nbd7 {[%clk 0:02:40.8]} 11. Ne3 {[%clk
0:02:42.8]} 11... O-O-O {[%clk 0:02:35.1]} 12. b4 {[%clk 0:02:35.7]} 12... Nd5
{[%clk 0:02:28.4]} 13. c4 {[%clk 0:02:23.5]} 13... Bxb4+ {[%clk 0:02:23.9]} 14.
Bd2 {[%clk 0:02:19.1]} 14... Bxd2+ {[%clk 0:02:21.7]} 15. Qxd2 {[%clk
0:02:18.4]} 15... Nxe3 {[%clk 0:02:18.9]} 16. Qxe3 {[%clk 0:02:16.2]} 16... Qa5+
{[%clk 0:02:09.1]} 17. Nd2 {[%clk 0:02:09.4]} 17... Bxe2 {[%clk 0:02:07.2]} 18.
Qxe2 {[%clk 0:02:08.8]} 18... Qc3 {[%clk 0:02:05.1]} 19. O-O {[%clk 0:02:00.5]}
19... Qxd4 {[%clk 0:02:03.5]} 20. Rab1 {[%clk 0:01:56.6]} 20... Qxh4 {[%clk
0:02:00.1]} 21. Rb3 {[%clk 0:01:54.6]} 21... Nc5 {[%clk 0:01:56.9]} 22. Rb2
{[%clk 0:01:41.4]} 22... Qd4 {[%clk 0:01:55.3]} 23. Rfb1 {[%clk 0:01:39]} 23...
h4 {[%clk 0:01:52.8]} 24. Nf3 {[%clk 0:01:37.3]} 24... Qd3 {[%clk 0:01:46]} 25.
Qe5 {[%clk 0:01:34.1]} 25... Qd6 {[%clk 0:01:41]} 26. Qxg7 {[%clk 0:01:20.7]}
26... Qf8 {[%clk 0:01:36.4]} 27. Qe5 {[%clk 0:01:18.8]} 27... Qd6 {[%clk
0:01:34.9]} 28. Qc3 {[%clk 0:01:11.9]} 28... h3 {[%clk 0:01:33]} 29. g3 {[%clk
0:01:10.7]} 29... h2+ {[%clk 0:01:31.2]} 30. Kh1 {[%clk 0:01:10.6]} 30... Qd3
{[%clk 0:01:27.5]} 31. Qxd3 {[%clk 0:01:04.2]} 31... Rxd3 {[%clk 0:01:25.5]} 32.
Nxh2 {[%clk 0:00:57.9]} 32... Rd4 {[%clk 0:01:22.3]} 33. Kg2 {[%clk 0:00:57.6]}
33... Rxc4 {[%clk 0:01:20.9]} 34. Nf3 {[%clk 0:00:53.3]} 34... f6 {[%clk
0:01:18.5]} 35. Rd2 {[%clk 0:00:50]} 35... Rd8 {[%clk 0:01:15.7]} 36. Re2 {[%clk
0:00:48]} 36... e5 {[%clk 0:01:14.4]} 37. Nh4 {[%clk 0:00:46.3]} 37... Kc7
{[%clk 0:01:07.2]} 38. Nf5 {[%clk 0:00:46]} 38... Ne6 {[%clk 0:01:04.9]} 39.
Reb2 {[%clk 0:00:41.2]} 39... b6 {[%clk 0:01:04.2]} 40. Ne3 {[%clk 0:00:35.3]}
40... Rc3 {[%clk 0:01:02.5]} 41. Ng4 {[%clk 0:00:29.6]} 41... f5 {[%clk
0:00:52.5]} 42. Nxe5 {[%clk 0:00:29]} 42... f4 {[%clk 0:00:51.7]} 43. Nf7 {[%clk
0:00:21.7]} 43... Rf8 {[%clk 0:00:44.4]} 44. Ne5 {[%clk 0:00:16.3]} 44... fxg3
{[%clk 0:00:42.4]} 45. fxg3 {[%clk 0:00:16]} 45... Rg8 {[%clk 0:00:38]} 46. g4
{[%clk 0:00:13.5]} 46... Rg5 {[%clk 0:00:32]} 47. Rf2 {[%clk 0:00:13.1]} 47...
Rxe5 {[%clk 0:00:28.5]} 48. Rf7+ {[%clk 0:00:12.4]} 48... Kd6 {[%clk 0:00:27]}
49. Rd1+ {[%clk 0:00:11.9]} 49... Rd5 {[%clk 0:00:26.5]} 50. Re1 {[%clk
0:00:11.6]} 50... Rc2+ {[%clk 0:00:24.9]} 51. Kf1 {[%clk 0:00:11.4]} 51... Rxa2
{[%clk 0:00:23.1]} 52. Rf6 {[%clk 0:00:10.2]} 52... Re5 {[%clk 0:00:20.6]} 53.
Rd1+ {[%clk 0:00:09.2]} 53... Ke7 {[%clk 0:00:19]} 54. Rh6 {[%clk 0:00:07.8]}
54... c5 {[%clk 0:00:11.8]} 55. Rh7+ {[%clk 0:00:07.5]} 55... Kf6 {[%clk
0:00:10.7]} 0-1

[Event "Betsys MČR v online bleskovém šachu 2021"]
[Site "Chess.com"]
[Date "2021.04.17"]
[Round "11"]
[White "pedroholly22"]
[Black "petrgnojek"]
[Result "1/2-1/2"]
[WhiteElo "2400"]
[BlackElo "2278"]
[TimeControl "180+1"]
[EndTime "10:50:55 PDT"]
[Termination "Remíza opakováním pozice"]

1. Nf3 {[%clk 0:03:00.9]} 1... d6 {[%clk 0:02:58.9]} 2. b3 {[%clk 0:02:58.3]}
2... g6 {[%clk 0:02:59.8]} 3. Bb2 {[%clk 0:02:58.2]} 3... e5 {[%clk 0:03:00]} 4.
d4 {[%clk 0:02:57.9]} 4... e4 {[%clk 0:02:56.6]} 5. Ng1 {[%clk 0:02:57.8]} 5...
Bg7 {[%clk 0:02:55.4]} 6. e3 {[%clk 0:02:58]} 6... f5 {[%clk 0:02:53]} 7. c4
{[%clk 0:02:42.2]} 7... Nf6 {[%clk 0:02:50.5]} 8. g3 {[%clk 0:02:32]} 8... Be6
{[%clk 0:02:46.4]} 9. Ne2 {[%clk 0:02:30]} 9... Nbd7 {[%clk 0:02:44.7]} 10. Bg2
{[%clk 0:02:27]} 10... Qe7 {[%clk 0:02:41.8]} 11. Nbc3 {[%clk 0:02:26.4]} 11...
c6 {[%clk 0:02:39.2]} 12. Qd2 {[%clk 0:02:25.2]} 12... Bf7 {[%clk 0:02:34.2]}
13. a4 {[%clk 0:02:01.8]} 13... g5 {[%clk 0:02:06]} 14. h4 {[%clk 0:01:53.5]}
14... h6 {[%clk 0:02:04.9]} 15. a5 {[%clk 0:01:49.3]} 15... c5 {[%clk
0:01:21.2]} 16. Nb5 {[%clk 0:01:44.4]} 16... O-O {[%clk 0:01:15]} 17. hxg5
{[%clk 0:01:42.2]} 17... hxg5 {[%clk 0:01:14.2]} 18. O-O-O {[%clk 0:01:08.9]}
18... a6 {[%clk 0:01:12.2]} 19. Nbc3 {[%clk 0:01:05.7]} 19... d5 {[%clk
0:01:02]} 20. cxd5 {[%clk 0:00:57]} 20... Nxd5 {[%clk 0:00:44.9]} 21. Nxd5
{[%clk 0:00:39.2]} 21... Bxd5 {[%clk 0:00:45.8]} 22. dxc5 {[%clk 0:00:39.1]}
22... Qxc5+ {[%clk 0:00:43.2]} 23. Kb1 {[%clk 0:00:34.5]} 23... Be6 {[%clk
0:00:18.5]} 24. Bxg7 {[%clk 0:00:19.7]} 24... Kxg7 {[%clk 0:00:18.4]} 25. Nd4
{[%clk 0:00:20.6]} 25... Bf7 {[%clk 0:00:09]} 26. Qb2 {[%clk 0:00:16.8]} 26...
Nf6 {[%clk 0:00:07.7]} 27. Rc1 {[%clk 0:00:16]} 27... Qe5 {[%clk 0:00:06]} 28.
Rhd1 {[%clk 0:00:14.1]} 28... Kg6 {[%clk 0:00:05.5]} 29. b4 {[%clk 0:00:12.7]}
29... Rac8 {[%clk 0:00:05.3]} 30. Rxc8 {[%clk 0:00:11.5]} 30... Rxc8 {[%clk
0:00:06.2]} 31. Rc1 {[%clk 0:00:11.8]} 31... Rxc1+ {[%clk 0:00:05]} 32. Qxc1
{[%clk 0:00:11.6]} 32... Qd6 {[%clk 0:00:05.7]} 33. Qc3 {[%clk 0:00:11]} 33...
Nd5 {[%clk 0:00:04.7]} 34. Qc5 {[%clk 0:00:09.9]} 34... Qxc5 {[%clk 0:00:04]}
35. bxc5 {[%clk 0:00:10]} 35... Nc3+ {[%clk 0:00:04.7]} 36. Kc2 {[%clk
0:00:09.4]} 36... Na4 {[%clk 0:00:03.5]} 37. c6 {[%clk 0:00:08.5]} 37... bxc6
{[%clk 0:00:03.6]} 38. Nxc6 {[%clk 0:00:09.4]} 38... Nc5 {[%clk 0:00:02.9]} 39.
Nb4 {[%clk 0:00:09.2]} 39... Nb3 {[%clk 0:00:02.1]} 40. Nxa6 {[%clk 0:00:07.8]}
40... Nxa5 {[%clk 0:00:02.6]} 41. Kc3 {[%clk 0:00:08.4]} 41... Nc6 {[%clk
0:00:02.5]} 42. Nc5 {[%clk 0:00:08.8]} 42... Ne5 {[%clk 0:00:03.1]} 43. Nb3
{[%clk 0:00:08.5]} 43... Ng4 {[%clk 0:00:03.3]} 44. f3 {[%clk 0:00:08.4]} 44...
Nxe3 {[%clk 0:00:02.8]} 45. Bh1 {[%clk 0:00:08.3]} 45... Nf1 {[%clk 0:00:03]}
46. fxe4 {[%clk 0:00:08.1]} 46... Nxg3 {[%clk 0:00:03.2]} 47. exf5+ {[%clk
0:00:09]} 47... Kxf5 {[%clk 0:00:03.2]} 48. Bg2 {[%clk 0:00:09.4]} 48... Bxb3
{[%clk 0:00:01.8]} 49. Kxb3 {[%clk 0:00:09.3]} 49... Kf4 {[%clk 0:00:02.7]} 50.
Kc3 {[%clk 0:00:09.8]} 50... Ne2+ {[%clk 0:00:02.3]} 51. Kd2 {[%clk 0:00:09.8]}
51... Ng1 {[%clk 0:00:02.6]} 52. Ke1 {[%clk 0:00:09.9]} 52... Kg3 {[%clk
0:00:02.8]} 53. Kf1 {[%clk 0:00:09.6]} 53... Nf3 {[%clk 0:00:02.7]} 54. Bh1
{[%clk 0:00:09.1]} 54... g4 {[%clk 0:00:01.6]} 55. Bg2 {[%clk 0:00:06.8]} 55...
Nd2+ {[%clk 0:00:01.9]} 56. Kg1 {[%clk 0:00:06.8]} 56... Nf3+ {[%clk 0:00:02.7]}
57. Kf1 {[%clk 0:00:07.2]} 57... Nh2+ {[%clk 0:00:03.6]} 58. Kg1 {[%clk
0:00:07.4]} 58... Nf3+ {[%clk 0:00:04.5]} 59. Kf1 {[%clk 0:00:07.9]} 1/2-1/2

[Event "Betsys MČR v online bleskovém šachu 2021"]
[Site "Chess.com"]
[Date "2021.04.17"]
[Round "11"]
[White "Lukuluss88"]
[Black "Innerz98"]
[Result "1-0"]
[WhiteElo "2048"]
[BlackElo "2109"]
[TimeControl "180+1"]
[EndTime "10:50:56 PDT"]
[Termination "Uživatel Lukuluss88 zvítězil po vzdání soupeře"]

1. c4 {[%clk 0:03:00.9]} 1... c5 {[%clk 0:02:55.3]} 2. Nc3 {[%clk 0:03:00.6]}
2... g6 {[%clk 0:02:54.5]} 3. g3 {[%clk 0:03:00.1]} 3... Bg7 {[%clk 0:02:55]} 4.
Bg2 {[%clk 0:03:00.3]} 4... Nc6 {[%clk 0:02:55.5]} 5. e4 {[%clk 0:03:00.1]} 5...
e6 {[%clk 0:02:55]} 6. d3 {[%clk 0:02:57.5]} 6... Nge7 {[%clk 0:02:54.9]} 7.
Nge2 {[%clk 0:02:56.3]} 7... O-O {[%clk 0:02:54.6]} 8. Be3 {[%clk 0:02:53.9]}
8... b6 {[%clk 0:02:53.1]} 9. O-O {[%clk 0:02:52.6]} 9... Bb7 {[%clk 0:02:53.3]}
10. f4 {[%clk 0:02:46.5]} 10... d6 {[%clk 0:02:49.2]} 11. Rb1 {[%clk 0:02:40]}
11... a5 {[%clk 0:02:44.2]} 12. a3 {[%clk 0:02:39.4]} 12... Nd4 {[%clk
0:02:40.3]} 13. Bxd4 {[%clk 0:02:36.2]} 13... cxd4 {[%clk 0:02:41.2]} 14. Nb5
{[%clk 0:02:28.2]} 14... Nc6 {[%clk 0:02:37.2]} 15. b4 {[%clk 0:02:20.6]} 15...
axb4 {[%clk 0:02:36.1]} 16. axb4 {[%clk 0:02:20.2]} 16... Ne7 {[%clk 0:01:40.6]}
17. Ra1 {[%clk 0:02:10.7]} 17... d5 {[%clk 0:01:36]} 18. cxd5 {[%clk 0:02:04.2]}
18... exd5 {[%clk 0:01:31.1]} 19. e5 {[%clk 0:02:02.7]} 19... Nc6 {[%clk
0:01:27]} 20. Qb3 {[%clk 0:01:49]} 20... f6 {[%clk 0:01:08.8]} 21. Nd6 {[%clk
0:01:29.9]} 21... Rxa1 {[%clk 0:01:00.7]} 22. Rxa1 {[%clk 0:01:24.9]} 22... Ba8
{[%clk 0:00:59.9]} 23. Bxd5+ {[%clk 0:01:16.3]} 23... Kh8 {[%clk 0:00:58.1]} 24.
Bxc6 {[%clk 0:01:11.8]} 24... Bxc6 {[%clk 0:00:54.1]} 25. Nf7+ {[%clk
0:01:10.7]} 25... Rxf7 {[%clk 0:00:53.1]} 26. Qxf7 {[%clk 0:01:09.2]} 26... fxe5
{[%clk 0:00:43.6]} 27. Ra7 {[%clk 0:01:04.8]} 27... Qf6 {[%clk 0:00:41.1]} 28.
Qxg7+ {[%clk 0:00:47]} 28... Qxg7 {[%clk 0:00:38.6]} 29. Rxg7 {[%clk 0:00:46.6]}
29... Kxg7 {[%clk 0:00:39.5]} 30. fxe5 {[%clk 0:00:46.7]} 30... Bb5 {[%clk
0:00:35.5]} 31. Nxd4 {[%clk 0:00:44]} 31... Bxd3 {[%clk 0:00:35.5]} 32. Kf2
{[%clk 0:00:42.8]} 32... Kf7 {[%clk 0:00:33.5]} 33. Ke3 {[%clk 0:00:40.8]} 33...
Bc4 {[%clk 0:00:32.3]} 34. Ke4 {[%clk 0:00:37.1]} 34... h6 {[%clk 0:00:28.3]}
35. h4 {[%clk 0:00:36.3]} 35... Ke7 {[%clk 0:00:24.8]} 36. Nf3 {[%clk
0:00:26.2]} 36... Ke6 {[%clk 0:00:22]} 37. Nd4+ {[%clk 0:00:23.9]} 37... Ke7
{[%clk 0:00:21.9]} 38. g4 {[%clk 0:00:22.1]} 38... Kf7 {[%clk 0:00:19.1]} 39. g5
{[%clk 0:00:20.3]} 39... hxg5 {[%clk 0:00:19.1]} 40. hxg5 {[%clk 0:00:19.3]}
40... Ke7 {[%clk 0:00:19.6]} 41. Kf4 {[%clk 0:00:15.7]} 41... Kf7 {[%clk
0:00:19.7]} 42. Nc6 {[%clk 0:00:14.4]} 42... Ke6 {[%clk 0:00:18.7]} 43. Nd4+
{[%clk 0:00:12.7]} 43... Kf7 {[%clk 0:00:11.6]} 44. Nf3 {[%clk 0:00:12.4]} 44...
Ke6 {[%clk 0:00:10.7]} 45. Nh4 {[%clk 0:00:12.4]} 45... Kf7 {[%clk 0:00:10.4]}
46. Ke4 {[%clk 0:00:12.6]} 46... Bb3 {[%clk 0:00:08.1]} 47. Kd4 {[%clk
0:00:12.5]} 47... Bc2 {[%clk 0:00:05]} 48. Kd5 {[%clk 0:00:12.2]} 48... Bb3+
{[%clk 0:00:04.8]} 49. Kd6 {[%clk 0:00:12.3]} 49... Be6 {[%clk 0:00:04.2]} 50.
Nf3 {[%clk 0:00:11.9]} 50... Bf5 {[%clk 0:00:04]} 51. Nd4 {[%clk 0:00:11.8]}
51... Be4 {[%clk 0:00:04.5]} 52. e6+ {[%clk 0:00:11.9]} 52... Ke8 {[%clk
0:00:04.5]} 53. Nb5 {[%clk 0:00:11.9]} 53... Kd8 {[%clk 0:00:03.9]} 54. Nc3
{[%clk 0:00:11.9]} 54... Ke8 {[%clk 0:00:04.1]} 1-0

[Event "Betsys MČR v online bleskovém šachu 2021"]
[Site "Chess.com"]
[Date "2021.04.17"]
[Round "11"]
[White "jonasstach"]
[Black "matyson523"]
[Result "0-1"]
[WhiteElo "1992"]
[BlackElo "1839"]
[TimeControl "180+1"]
[EndTime "10:50:57 PDT"]
[Termination "Uživatel matyson523 zvítězil po vzdání soupeře"]

1. e4 {[%clk 0:03:00.9]} 1... c5 {[%clk 0:02:59.6]} 2. c3 {[%clk 0:03:00.7]}
2... d5 {[%clk 0:02:58.3]} 3. exd5 {[%clk 0:03:00.6]} 3... Qxd5 {[%clk
0:02:59.2]} 4. Nf3 {[%clk 0:03:01.3]} 4... Nc6 {[%clk 0:02:57.6]} 5. Na3 {[%clk
0:03:01.5]} 5... g6 {[%clk 0:02:54]} 6. Be2 {[%clk 0:03:01.1]} 6... Bg7 {[%clk
0:02:53.4]} 7. O-O {[%clk 0:03:01.7]} 7... Nf6 {[%clk 0:02:52.6]} 8. Bc4 {[%clk
0:03:02.2]} 8... Qd6 {[%clk 0:02:50.8]} 9. Nb5 {[%clk 0:02:54.8]} 9... Qd8
{[%clk 0:02:48.6]} 10. Re1 {[%clk 0:02:48.4]} 10... a6 {[%clk 0:02:46.5]} 11.
Na3 {[%clk 0:02:46.4]} 11... O-O {[%clk 0:02:42.8]} 12. h3 {[%clk 0:02:44]}
12... b5 {[%clk 0:02:41.1]} 13. Bf1 {[%clk 0:02:41.4]} 13... Bb7 {[%clk
0:02:40.1]} 14. d3 {[%clk 0:02:30.2]} 14... Qd5 {[%clk 0:02:38.1]} 15. Be3
{[%clk 0:02:14.3]} 15... e5 {[%clk 0:02:34.1]} 16. Qc2 {[%clk 0:02:04.8]} 16...
Rad8 {[%clk 0:02:26.8]} 17. Rad1 {[%clk 0:02:04.5]} 17... Rfe8 {[%clk
0:02:25.4]} 18. b3 {[%clk 0:01:53]} 18... Rc8 {[%clk 0:02:01.6]} 19. Bg5 {[%clk
0:01:45.1]} 19... b4 {[%clk 0:01:57.4]} 20. Nc4 {[%clk 0:01:38.3]} 20... bxc3
{[%clk 0:01:54.9]} 21. Nb6 {[%clk 0:01:36.3]} 21... Qd6 {[%clk 0:01:46.7]} 22.
Nxc8 {[%clk 0:01:33]} 22... Rxc8 {[%clk 0:01:45.7]} 23. Qxc3 {[%clk 0:01:29.5]}
23... Nd4 {[%clk 0:01:43.9]} 24. Nxe5 {[%clk 0:01:12.5]} 24... Qd5 {[%clk
0:01:38.3]} 25. Qc4 {[%clk 0:01:02]} 25... h6 {[%clk 0:00:57.8]} 26. Bxf6 {[%clk
0:00:29.8]} 26... Bxf6 {[%clk 0:00:55.7]} 27. Qxd5 {[%clk 0:00:30.3]} 27... Bxd5
{[%clk 0:00:54.4]} 28. Nc4 {[%clk 0:00:27.6]} 28... Nc2 {[%clk 0:00:41.7]} 29.
Re2 {[%clk 0:00:24.3]} 29... Nd4 {[%clk 0:00:41.8]} 30. Re3 {[%clk 0:00:20.4]}
30... Nc2 {[%clk 0:00:36.4]} 31. Re2 {[%clk 0:00:20.6]} 31... Nd4 {[%clk
0:00:36.2]} 32. Red2 {[%clk 0:00:21]} 32... Bg5 {[%clk 0:00:33]} 33. Ne3 {[%clk
0:00:20.8]} 33... Be6 {[%clk 0:00:27.5]} 34. Be2 {[%clk 0:00:17.9]} 34... f5
{[%clk 0:00:20.1]} 35. Rb2 {[%clk 0:00:16.2]} 35... Bf6 {[%clk 0:00:19.2]} 36.
Rbd2 {[%clk 0:00:15.5]} 36... f4 {[%clk 0:00:19]} 37. Nc4 {[%clk 0:00:15]} 37...
Bg5 {[%clk 0:00:16.9]} 38. Bf3 {[%clk 0:00:15.1]} 38... Nxf3+ {[%clk 0:00:14.8]}
39. gxf3 {[%clk 0:00:16]} 39... Bxh3 {[%clk 0:00:14.8]} 40. Re1 {[%clk
0:00:15.8]} 40... Rd8 {[%clk 0:00:12.1]} 41. Re5 {[%clk 0:00:12.4]} 41... Bf6
{[%clk 0:00:12.1]} 42. Re4 {[%clk 0:00:12.5]} 42... g5 {[%clk 0:00:10.9]} 43.
Nb2 {[%clk 0:00:10.9]} 43... Bf5 {[%clk 0:00:11]} 44. Na4 {[%clk 0:00:10.6]}
44... Bxe4 {[%clk 0:00:10.7]} 45. fxe4 {[%clk 0:00:11.5]} 45... Bd4 {[%clk
0:00:10.4]} 46. Kg2 {[%clk 0:00:10.7]} 46... Kf7 {[%clk 0:00:10.4]} 47. f3
{[%clk 0:00:11.2]} 47... h5 {[%clk 0:00:10.4]} 48. Nb6 {[%clk 0:00:11.5]} 48...
Ke6 {[%clk 0:00:09.9]} 49. Nd5 {[%clk 0:00:12]} 49... Rxd5 {[%clk 0:00:08.7]}
50. exd5+ {[%clk 0:00:12.9]} 50... Kxd5 {[%clk 0:00:09.6]} 51. Kh3 {[%clk
0:00:12.2]} 51... Be3 {[%clk 0:00:09.6]} 52. Kg2 {[%clk 0:00:12.5]} 52... Bxd2
{[%clk 0:00:08.6]} 53. Kh2 {[%clk 0:00:13.4]} 53... Kd4 {[%clk 0:00:09]} 54. Kg2
{[%clk 0:00:14.3]} 54... Kxd3 {[%clk 0:00:09.7]} 55. Kh3 {[%clk 0:00:15]} 55...
c4 {[%clk 0:00:10]} 56. bxc4 {[%clk 0:00:14.9]} 56... Kxc4 {[%clk 0:00:10.9]}
57. a4 {[%clk 0:00:15.2]} 57... Kb4 {[%clk 0:00:10.7]} 58. a5 {[%clk 0:00:16.1]}
58... Kxa5 {[%clk 0:00:11.1]} 59. Kg2 {[%clk 0:00:16.7]} 59... g4 {[%clk
0:00:09.9]} 60. Kf2 {[%clk 0:00:17.6]} 60... Be3+ {[%clk 0:00:09.8]} 61. Ke2
{[%clk 0:00:16.6]} 61... g3 {[%clk 0:00:10.7]} 0-1